Cogmind - Beta 12 @@@ ROGUE MODE // 2023.03.30 @ 08:47:02 Player: Exp. Geonium Core Result: Destroyed by DAS Turret with DAS Cannon Performance ------------- Evolutions (1) 500 Regions Visited (5) 1000 Robots Destroyed (24) 120 Value Destroyed (570) 570 Prototype IDs (1) 20 Alien Tech Used (0) 0 Bonus (42) 42 TOTAL SCORE: 2252 Bonus ------- Follower Combat Kills 190 Friendly Fire -148 Cogmind --------- Core Integrity 0/400 Matter 35/300 Energy 100/100 System Corruption 0% Temperature Cool (0) Movement Treading (160) Location -9/Exiles Parts ------- > --- POWER (1) -------- (None) > --- PROPULSION (3) --- Light Treads > --- UTILITY (3) ------ Medium Storage Unit Hardened Light Armor Plating > --- WEAPON (2) ------- Heavy Assault Rifle > --- INVENTORY (10) --- Improved Ion Engine High-capacity Storage Unit Launcher Guidance Computer Hacking Suite Heavy Assault Rifle Mini Grenade Launcher Peak State ------------ > --- POWER ------------ Improved Ion Engine > --- PROPULSION ------- Light Treads Improved Treads Improved Treads > --- UTILITY ---------- Medium Storage Unit Hardened Light Armor Plating Hardened Light Armor Plating > --- WEAPON ----------- Improved EM Shotgun Heavy Assault Rifle > --- INVENTORY -------- Improved Ion Engine Light Treads Light Treads Wheel Hardened Light Armor Plating Hardened Light Armor Plating Hardened Light Armor Plating Hacking Suite Assault Rifle Rocket Launcher [Rating: 18] Favorites ----------- Power Improved Ion Engine Engine Improved Ion Engine Power Core Light Nuclear Core Propulsion Improved Treads Treads Improved Treads Leg Aluminum Leg Wheel Wheel Utility Hardened Light Armor Plating Storage Medium Storage Unit Protection Hardened Light Armor Plating Weapon Heavy Assault Rifle Energy Gun Small Laser Ballistic Gun Heavy Assault Rifle Launcher Rocket Launcher Build | -11 -10 -10 -9 -9 -9 ------- Run | Jun Mat Min Mat Min Exi Slots Evolved 2 | . . . 2 . . Power . | . . . . . . Propulsion 1 | . . . 1 . . Utility 1 | . . . 1 . . Weapon . | . . . . . . Parts Attached 40 | . 8 1 10 7 14 Power 3 | . 1 1 . 1 . Engine 2 | . 1 1 . . . Core 1 | . . . . 1 . Reactor . | . . . . . . Propulsion 11 | . 3 . 3 1 4 Treads 10 | . 3 . 3 1 3 Leg . | . . . . . . Wheel 1 | . . . . . 1 Hover . | . . . . . . Flight . | . . . . . . Utility 6 | . 2 . 2 1 1 Device . | . . . . . . Storage 1 | . 1 . . . . Processor . | . . . . . . Hackware . | . . . . . . Protection 5 | . 1 . 2 1 1 Artifact . | . . . . . . Weapon 20 | . 2 . 5 4 9 Energy Gun 1 | . . . 1 . . Energy Cannon . | . . . . . . Ballistic Gun 13 | . 2 . 4 2 5 Ballistic Cannon . | . . . . . . Launcher 6 | . . . . 2 4 Special Weapon . | . . . . . . Impact Weapon . | . . . . . . Slashing Weapon . | . . . . . . Piercing Weapon . | . . . . . . Special Melee Weapon . | . . . . . . Unidentified Prototypes 1 | . . . 1 . . Parts Lost 12 | . . . . 3 9 Power 2 | . . . . 1 1 Propulsion 5 | . . . . . 5 Utility 3 | . . . . 1 2 Weapon 2 | . . . . 1 1 Highest Loss Streak 5 | . . . . 3 5 To Critical Strikes 2 | . . . . 2 . Average Slot Usage (%) 94 | . 92 100 99 94 86 Engine 9 | . 14 14 11 6 . Core 2 | . . . . 3 10 Treads 27 | . 21 28 32 33 20 Leg 1 | . 6 . . . . Storage 12 | . 14 14 11 11 11 Protection 16 | . 6 14 21 22 16 Ballistic Gun 21 | . 23 28 21 17 17 Naked Turns . | . . . . . . Heaviest Build 34 | 13 23 23 33 34 32 Greatest Support 69 | 20 46 46 69 66 66 Greatest Overweight (x) 3 | . 1 . . . 3 Average Overweight (x) . | . . . . . 1 Largest Inventory Capacity 10 | . 10 10 10 10 10 Average Capacity 9 | . 9 10 10 10 10 Most Carried 10 | . 10 10 10 10 9 Average Carried 9 | . 9 9 9 9 7 Final Capacity 10 | 8 10 10 10 10 10 Final Carried 10 | 6 10 9 10 10 6 Class Distribution -------------------- 100% | Mutant Dominant Class ---------------- Mutant | -10/Materials Mutant | -10/Mines Mutant | -9/Materials Mutant | -9/Mines Mutant | -9/Exiles Resources | -11 -10 -10 -9 -9 -9 ----------- Run | Jun Mat Min Mat Min Exi Matter Collected 1073 | 200 200 70 83 425 95 Remotely . | . . . . . . Salvage Created 971 | . 358 163 204 144 102 Parts 43 | . 11 11 12 5 4 Haulers Intercepted 3 | . 2 . 1 . . Recyclers Shooed 2 | . . 1 1 . . Parts Field Recycled . | . . . . . . Retrieved Matter . | . . . . . . Parts Self-Destructed . | . . . . . . Prevented . | . . . . . . Kills | -11 -10 -10 -9 -9 -9 ------- Run | Jun Mat Min Mat Min Exi Combat Hostiles Destroyed 35 | . 5 6 3 14 7 Melee 1 | . . . . 1 . Guns 18 | . 5 6 3 3 1 AOE 16 | . . . . 10 6 Classes Destroyed 6 | . 3 1 1 1 . Hauler 3 | . 2 . 1 . . Operator 2 | . 1 . 1 . . Swarmer 6 | . . 4 . 2 . Grunt 11 | . 5 2 2 2 . Sentry 1 | . . . 1 . . Assembled 16 | . . . . 9 7 Best Kill Streak 9 | . 2 3 2 9 6 Combat Bots Only 9 | . 2 3 1 9 6 Max Kills in Single Turn 5 | . 1 1 1 5 3 Gunslinging . | . . . . . . Exploded 5 | . . . . 5 3 Melee 1 | . . . . 1 . Uniques/NPCs Destroyed 1 | . . . . 1 . 8R-AWN (-9/Mines) Combat | -11 -10 -10 -9 -9 -9 -------- Run | Jun Mat Min Mat Min Exi Damage Taken 2898 | . 317 239 173 927 1242 Core 528 | . 56 37 11 93 331 Absorbed by Shields . | . . . . . . Core Remaining (%) 81 | 100 . 62 . . . Volleys Fired 157 | . 36 16 19 45 41 Largest 2 | . 2 2 2 2 2 Hottest 60 | . 60 40 46 46 46 Shots Fired 267 | . 71 32 37 79 48 Gun 238 | . 71 32 37 74 24 Cannon . | . . . . . . Launcher 29 | . . . . 5 24 Special . | . . . . . . Kinetic 220 | . 53 32 37 74 24 Thermal 18 | . 18 . . . . Explosive 29 | . . . . 5 24 Electromagnetic . | . . . . . . Robot Hit Streak 14 | . 8 6 5 14 7 Robot Miss Streak 4 | . 3 2 4 3 4 Penetration Max . | . . . . . . Secondary Targets . | . . . . . . Shots Hit Robots 159 | . 44 15 21 62 17 Core Hits 92 | . 18 10 11 35 18 Critical Kills . | . . . . . . Critical Parts Destroyed . | . . . . . . Critical Strikes 1 | . . . . 1 . Destroy 1 | . . . . 1 . Melee Attacks . | . . . . . . Impact . | . . . . . . Slashing . | . . . . . . Piercing . | . . . . . . Sneak Attacks . | . . . . . . Combat Hostiles . | . . . . . . Follow-up Attacks . | . . . . . . Damage Inflicted 3240 | . 498 183 341 1617 601 Guns 2121 | . 497 181 330 905 208 Cannons . | . . . . . . Explosions 1051 | . . . . 686 365 Melee . | . . . . . . Ramming 68 | . 1 2 11 26 28 Kinetic 2013 | . 389 181 330 905 208 Thermal 108 | . 108 . . . . Explosive 1051 | . . . . 686 365 Electromagnetic . | . . . . . . Impact . | . . . . . . Slashing . | . . . . . . Piercing . | . . . . . . Highest Corruption . | . . . . . . Average Corruption . | . . . . . . Corruption Purged . | . . . . . . Corruption Blocked . | . . . . . . Overload Shots . | . . . . . . Overflow Damage 38 | . . . . 31 7 Projectiles . | . . . . . . Explosions 38 | . . . . 31 7 Melee . | . . . . . . Knockbacks 1 | . . . . 1 . Impact 1 | . . . . 1 . Kinetic . | . . . . . . Secondary . | . . . . . . Self-Inflicted Damage 80 | . . . . 58 22 Shots 3 | . . . . 2 1 Rammed 33 | . 1 1 4 8 19 Targets Rammed 35 | . 1 1 4 9 20 Kicked . | . . . . . . Crushed 2 | . . . . 1 1 Highest Temperature 80 | . 72 54 51 75 80 Average Temperature 24 | . 26 18 18 29 25 Received Heat Transfer 351 | . 180 78 66 27 . Siege Activations . | . . . . . . Robots Corrupted . | . . . . . . Combat Hostiles . | . . . . . . Parts Fried . | . . . . . . Impact Corruptions . | . . . . . . Robots Melted . | . . . . . . Combat Hostiles . | . . . . . . Parts Melted 2 | . 1 . 1 . . Heat Transferred 250 | . 250 . . . . Parts Sabotaged . | . . . . . . Parts Stolen . | . . . . . . Parts Stripped . | . . . . . . Power Chain Reactions . | . . . . . . Missiles Intercepted . | . . . . . . Alert | -11 -10 -10 -9 -9 -9 ------- Run | Jun Mat Min Mat Min Exi Peak Influence 325 | . 167 210 325 142 . Initial 55 | . . 40 3 55 . Average 85 | . 59 99 180 40 . Maximum Alert Level 1 | . . 1 1 . . Low Security (%) 91 | . 100 91 66 100 . Level 1 8 | . . 8 33 . . Level 2 . | . . . . . . Level 3 . | . . . . . . Level 4 . | . . . . . . Level 5 . | . . . . . . High Security . | . . . . . . Max Security . | . . . . . . Squads Dispatched 5 | . 1 . 4 . . Investigation 1 | . . . 1 . . Extermination . | . . . . . . Reinforcement 4 | . 1 . 3 . . Assault . | . . . . . . Garrison . | . . . . . . Intercept . | . . . . . . Searches Triggered . | . . . . . . Construction Impeded . | . . . . . . Haulers Reinforced . | . . . . . . Active Scanning Responses . | . . . . . . Cargo Convoy Interrupts . | . . . . . . Stealth | -11 -10 -10 -9 -9 -9 --------- Run | Jun Mat Min Mat Min Exi Distress Signals 2 | . 1 . 1 . . Communications Jammed . | . . . . . . Distress Signals . | . . . . . . Times Spotted 63 | . 16 8 13 19 7 Peak Tracking Total 8 | . 4 3 4 8 8 Tactical Retreats 12 | . 1 1 . 1 9 Traps | -11 -10 -10 -9 -9 -9 ------- Run | Jun Mat Min Mat Min Exi Traps Triggered . | . . . . . . Indirectly . | . . . . . . Trap Hack Attempts . | . . . . . . Triggered . | . . . . . . Disarmed . | . . . . . . Reprogrammed . | . . . . . . Reused . | . . . . . . Traps Extracted . | . . . . . . Installed . | . . . . . . Triggered . | . . . . . . Machines | -11 -10 -10 -9 -9 -9 ---------- Run | Jun Mat Min Mat Min Exi Machines Disabled 3 | . . . . . 3 Max in Single Turn 1 | . . . . . 1 Machines Repaired . | . . . . . . Machines Sabotaged . | . . . . . . Overloaded Fab Kills . | . . . . . . Hacking | -11 -10 -10 -9 -9 -9 --------- Run | Jun Mat Min Mat Min Exi Machines Accessed 5 | . 3 . 2 . . Terminals 4 | . 3 . 1 . . Fabricators . | . . . . . . Repair Stations . | . . . . . . Recycling Units 1 | . . . 1 . . Scanalyzers . | . . . . . . Garrison Access . | . . . . . . Total Hacks 12 | . 9 . 3 . . Successful 3 | . 1 . 2 . . Failed 9 | . 8 . 1 . . Catastrophic 3 | . 3 . . . . Database Lockouts . | . . . . . . Manual 8 | . 7 . 1 . . Terminals 11 | . 9 . 2 . . Fabricators . | . . . . . . Repair Stations . | . . . . . . Recycling Units 1 | . . . 1 . . Scanalyzers . | . . . . . . Garrison Access . | . . . . . . Terminal Hacks 2 | . 1 . 1 . . Branch Access Points 1 | . . . 1 . . Registered Prototypes 1 | . 1 . . . . Fabricator Hacks . | . . . . . . Repair Station Hacks . | . . . . . . Recycling Unit Hacks . | . . . . . . Scanalyzer . | . . . . . . Garrison Access Hacks . | . . . . . . Unauthorized Hacks 1 | . . . 1 . . Terminals . | . . . . . . Fabricators . | . . . . . . Repair Stations . | . . . . . . Recycling Units 1 | . . . 1 . . Tunnel 1 | . . . 1 . . Scanalyzers . | . . . . . . Garrison Access . | . . . . . . Data Cores Recovered . | . . . . . . Used . | . . . . . . Hacking Detections 4 | . 3 . 1 . . Full Trace Events . | . . . . . . Feedback Events . | . . . . . . Feedback Blocked . | . . . . . . Robot Schematics Acquired . | . . . . . . Robots Built . | . . . . . . Authchips . | . . . . . . Time . | . . . . . . Total Robot Build Rating . | . . . . . . Part Schematics Acquired . | . . . . . . Parts Built . | . . . . . . Authchips . | . . . . . . Time . | . . . . . . Total Part Build Rating . | . . . . . . Parts Repaired . | . . . . . . Time . | . . . . . . Parts Recycled . | . . . . . . Recycled Matter . | . . . . . . Retrieved Matter . | . . . . . . Retrieved Components . | . . . . . . Parts Scanalyzed . | . . . . . . Part Schematics Acquired . | . . . . . . Parts Damaged . | . . . . . . Bothacking | -11 -10 -10 -9 -9 -9 ------------ Run | Jun Mat Min Mat Min Exi Used RIF Installer . | . . . . . . Robots Hacked . | . . . . . . Non-combat . | . . . . . . Combat . | . . . . . . Robot Hacks Applied . | . . . . . . Relay Couplers Released . | . . . . . . Fabnet Peak Effective % . | . . . . . . Robots Rewired . | . . . . . . Allies Hacked . | . . . . . . Hacks Repelled . | . . . . . . Allies | -11 -10 -10 -9 -9 -9 -------- Run | Jun Mat Min Mat Min Exi Total Allies 5 | . . 2 . 3 . Largest Group 3 | . . 2 1 3 . Highest-Rated Group 43 | . . 43 31 40 . Highest-Rated Ally 31 | . . 31 31 16 . Total Orders . | . . . . . . Ally Attacks 42 | . . . 31 11 . Total Damage 486 | . . . 379 107 . Kills 10 | . . . 8 2 . Allies Corrupted . | . . . . . . Allies Melted . | . . . . . . Intel | -11 -10 -10 -9 -9 -9 ------- Run | Jun Mat Min Mat Min Exi Robot Analysis Total . | . . . . . . Derelict Logs Recovered 3 | . . 2 . 1 . Drone Launches . | . . . . . . Drone Recoveries . | . . . . . . Exploration | -11 -10 -10 -9 -9 -9 ------------- Run | Jun Mat Min Mat Min Exi Turns Passed 3449 | . 721 590 606 1070 462 Spaces Moved 1845 | 1 387 338 325 562 232 Core . | . . . . . . Treads 1570 | . 288 338 325 562 57 Legs 100 | 1 99 . . . . Wheels 175 | . . . . . 175 Hover . | . . . . . . Flight . | . . . . . . Fastest Speed 110 | 120 120 160 160 160 110 Average Speed 154 | 120 152 160 160 160 130 Slowest Speed 240 | 120 190 160 160 160 240 Overloaded Moves . | . . . . . . Propulsion Burnouts . | . . . . . . Robots Hopped . | . . . . . . Cave-ins Triggered . | . . . . . . Exploration Rate (%) 50 | 2 65 69 27 96 43 Regions Visited 5 Branch Regions 3 Pre-discovered Areas 3 | . . 1 1 1 . Known Exits Taken 1 | . . . 1 . . Unknown Exits Taken 4 | 1 1 1 . 1 . Scrap Searched 2 | . . 1 . 1 . Spaces Dug . | . . . . . . Terrain Destroyed 112 | . . . . 38 74 Melee . | . . . . . . Projectile . | . . . . . . AOE 112 | . . . . 38 74 Terrain Rammed . | . . . . . . Walls Destroyed . | . . . . . . Machines Disabled . | . . . . . . Actions | -11 -10 -10 -9 -9 -9 --------- Run | Jun Mat Min Mat Min Exi Total 2143 | . 452 358 375 646 312 Wait 26 | . 5 . . 21 . Move 1840 | . 386 337 324 561 232 Hop . | . . . . . . Pick Up 17 | . 7 1 6 2 1 Fast Attach 16 | . 6 . 7 1 2 Attach 7 | . . . 1 1 5 Detach 1 | . . . 1 . . Swap 17 | . 2 1 2 5 7 Drop 23 | . 9 2 11 1 . Fire 157 | . 36 16 19 45 41 Melee . | . . . . . . Ram . | . . . . . . Kick . | . . . . . . Crush 35 | . 1 1 4 9 20 Escape Stasis . | . . . . . . Rewire 4 | . . . . . 4 Trap . | . . . . . . Miscellaneous . | . . . . . . Route ------- -11/Junkyard -10/Materials (discovered 3 exits: *Mat x2 / [*Min]) -10/Mines -9/Materials (discovered 2 exits: [*Mat] / *Min) -9/Mines (discovered 4 exits: [*Mat x2] / [*Exi] / [*Zio]) -9/Exiles (discovered 1 exit: [*Min]) History --------- Turn | Location | Event 1 | -11/Junkyard | Discovered new exit (range 0) 1 | -11/Junkyard | Entered Materials 294 | -10/Materials | Discovered new exit (range 11) 305 | -10/Materials | Build established: Mutant 333 | -10/Materials | Discovered new exit (range 16) 613 | -10/Materials | Discovered new exit (range 15) 722 | -10/Materials | Entered Mines 749 | -10/Mines | Received a Rocket Launcher from a helpful Derelict 890 | -10/Mines | Learned Materials security intel 970 | -10/Mines | Discovered new exit (range 6) 1312 | -10/Mines | Entered Materials 1312 | -9/Materials | Accompanied by 1 ally 1312 | -9/Materials | Evolved 2 slots: Propulsion x1, Utility x1 1317 | -9/Materials | Led the pair of lost Derelicts to an unsafe place 1698 | -9/Materials | Discovered new exit (range 4) 1736 | -9/Materials | Identified exit to Mines 1918 | -9/Materials | Entered Mines 2037 | -9/Mines | Learned location of Zion (-7) 2096 | -9/Mines | Assisted by bots powering up and referring to "LRC-V3" 2189 | -9/Mines | Discovered new exit (range 6) 2237 | -9/Mines | Discovered new exit (range 9) 2422 | -9/Mines | Assembled infested the area 2467 | -9/Mines | Destroyed 9 combat bots 2467 | -9/Mines | Met 8R-AWN 2494 | -9/Mines | Attacked by 8R-AWN 2599 | -9/Mines | Destroyed 8R-AWN 2624 | -9/Mines | Lost 3 parts (1p1u1w) 2805 | -9/Mines | A Derelict revealed a hidden shortcut to a safe place 2982 | -9/Mines | Discovered new exit (range 5) 2988 | -9/Mines | Entered Exiles 2988 | -9/Exiles | Attacked by the Exiles 3016 | -9/Exiles | Discovered new exit (range 15) 3432 | -9/Exiles | Core integrity fell below 50% 3440 | -9/Exiles | Core integrity fell below 20% 3450 | -9/Exiles | Destroyed by DAS Turret with DAS Cannon Last Messages --------------- 03304_ A-02 Transporter is unpowered. 03305_ Slammed into A-02 Transporter. 03312_ Attempting to rewire A-02 Transporter. 03312_ A-02 Transporter is unpowered. 03313_ Slammed into A-02 Transporter. 03347_ Crushed A-02 Transporter. 03347_ A-02 Transporter destroyed. 03348_ Acquired 49 matter. 03351_ Acquired Lgt. Treads. 03359_ Slammed into A-02 Transporter. 03369_ Acquired 18 matter. 03413_ Hrd. Light Armor Plating destroyed. 03414_ Acquired Lgt. Treads. 03420_ Lgt. Nuclear Core destroyed. 03420_ Destroyed Lgt. Nuclear Core. 03423_ Lgt. Treads destroyed. 03425_ Rocket Launcher destroyed. 03431_ Lgt. Treads destroyed. 03431_ Critical hit (Blast). 03437_ Hvy. Assault Rifle blasted off. Map ----- +----------------------------------------------------+ | ?????????????????????????????? ???????????????? | | ?????????????????????????????? ? ???????????? | | ?????????????????????????????" ?????????? | | ?????????????????????????????" ???????? | | ?????????????????????????????" "??????? | | ?????????????????????????????" "??????? | | ?????????????????????????????" "??????? | | ?????????????????????????????# ????????? | | ?????????????????????????????# ????????? | | ?????????????????????????????#" "X?????????? | | ?????????????????????????????#" "??????????? | | ?????????????????????????????#" "????????????? | | ????????????????????????????##" #?????????????? | | ???????????????????????????##"" #?????????????? | | ???????????????# ?????######"" #?????????????? | | ??????????????X# ?"###""""""" ##????????????? | | ????????????? """""" " "" ##????#####?## | | ????????????? "" """ " #####"""""""" | | ???????????? " " " """ "" | | ???????????? "" " | | ???????????? " | | ??????????? | | ??????????? % | | ?????????? %% | | ?????????? % """"" | | ?????????? @######""" | | ?????????? #????#####""" | | ?????????? #????????##""" | | ??????????? ####?????????#"""" | | ??????????? ????????????##"" | | ???????????? #??#####??####"""" | | ???????????? ## ####""" | | ???????????? " "" | | ???????????? | | ???????????? | | ????????????? " | | ????????????? " ! "" """ | | ?????????????? ""##! ##""" " " ""#" | | ????????????? ""#### !######""" """##"" | | ?????????????? """"##??# #????###""""##### | | ?????????????? """???## ####???######???? | | ??????????????? ""#???# "!#????????????? | | ??????????????? ""??????#" !#????????????? | | ???????????????? ?????????#" "#????????????? | | ?????????????????? ??????????#!!""!"#????????????? | | ?????????????????????????????########????????????? | | ?????????????????????????????????????????????????? | | ?????????????????????????????????????????????????? | | ?????????????????????????????????????????????????? | | ?????????????????????????????????????????????????? | +----------------------------------------------------+ Best States ------------- Heat Dissipation 28 Energy Generation 14 Energy Capacity 265 Matter Stores 300 Matter Capacity 300 Sight Range 16 Terrain Scan Density 10 Armor Coverage 300 Evasion (%) 55 Recoil Reduction 3 Item Schematics ----------------- None Robot Schematics ------------------ None Fabricated ------------ Nothing Alien Tech Used ----------------- None Achievements -------------- None Challenges ------------ None Game ------ Seed FortressDerelictSource Manual? 0 Play Time 00:22:28 Cumulative 354.7 hours Start 2023.03.30 @ 08:08:49 End 2023.03.30 @ 08:47:02 Sessions 1 Manual Loads 0 Difficulty Rogue Special Mode None Game No. 405 Rogue 405 Adventurer 0 Explorer 0 Win Type - Total 11 Types 8/0/2/1/0/0/0/0/0 Lore% 80 Gallery% 89 Achievement% 78 Wizard Run 0 Options --------- ASCII 0 Keyboard 0 Movement Numpad Keybinds 0 Fullscreen 1 Font 18/Terminus Map View 76x50 Tactical HUD 1 Map Filters NONE Filters NONE Steam 1 RUN: 380bd9a2-5592-4a21-a172-1ff086be67d8